[Event "Titled Tuesday Blitz October 18 Late 2022"]
[White "Goncalves, Davi Sulzbacher"]
[Black "Tsaruk, Maksim"]
[WhiteFideId "2154510"]
[BlackFideId "13511173"]
[WhiteElo "2182"]
[BlackElo "2273"]
[Result "0-1"]
[Round "07"]
[TimeControl "180+1"]
[Date "2022.10.18"]
[WhiteClock "0:00:13"]
[BlackClock "0:00:06"]

1. Nf3 {[%clk 0:03:00]}  Nf6 {[%clk 0:02:41]} 2. d4 {[%clk 0:03:00]}  d5 {[%clk 0:02:41]} 3. c4 {[%clk 0:02:59]}  dxc4 {[%clk 0:02:42]} 4. g3 {[%clk 0:02:59]}  c5 {[%clk 0:02:40]} 5. Bg2 {[%clk 0:02:56]}  Nc6 {[%clk 0:02:40]} 6. O-O {[%clk 0:02:55]}  cxd4 {[%clk 0:02:38]} 7. Qa4 {[%clk 0:02:52]}  Qa5 {[%clk 0:02:34]} 8. Qxa5 {[%clk 0:02:47]}  Nxa5 {[%clk 0:02:35]} 9. Nxd4 {[%clk 0:02:46]}  Bd7 {[%clk 0:02:11]} 10. Bd2 {[%clk 0:02:33]}  e5 {[%clk 0:02:11]} 11. Nf3 {[%clk 0:02:14]}  Nc6 {[%clk 0:02:10]} 12. Bc3 {[%clk 0:02:13]}  Bd6 {[%clk 0:02:09]} 13. Rd1 {[%clk 0:02:12]}  Ne4 {[%clk 0:02:05]} 14. Nbd2 {[%clk 0:02:11]}  Nxc3 {[%clk 0:02:05]} 15. bxc3 {[%clk 0:02:12]}  Ke7 {[%clk 0:01:51]} 16. Nxc4 {[%clk 0:02:11]}  Bc7 {[%clk 0:01:51]} 17. Ne3 {[%clk 0:02:05]}  Be6 {[%clk 0:01:48]} 18. Nd5+ {[%clk 0:02:04]}  Bxd5 {[%clk 0:01:48]} 19. Rxd5 {[%clk 0:02:04]}  Rhd8 {[%clk 0:01:46]} 20. Rb5 {[%clk 0:01:50]}  Rab8 {[%clk 0:01:33]} 21. Rab1 {[%clk 0:01:47]}  b6 {[%clk 0:01:33]} 22. Nh4 {[%clk 0:01:16]}  Na5 {[%clk 0:01:30]} 23. Nf5+ {[%clk 0:01:15]}  Kf8 {[%clk 0:01:29]} 24. Rd5 {[%clk 0:01:04]}  Nc4 {[%clk 0:01:19]} 25. Rbd1 {[%clk 0:00:58]}  g6 {[%clk 0:01:14]} 26. Ne3 {[%clk 0:00:52]}  Nxe3 {[%clk 0:00:32]} 27. fxe3 {[%clk 0:00:53]}  Ke7 {[%clk 0:00:31]} 28. R5d3 {[%clk 0:00:36]}  Bd6 {[%clk 0:00:15]} 29. Bd5 {[%clk 0:00:35]}  Bc5 {[%clk 0:00:15]} 30. Kg2 {[%clk 0:00:35]}  Rd6 {[%clk 0:00:12]} 31. e4 {[%clk 0:00:32]}  Rf6 {[%clk 0:00:10]} 32. Rf3 {[%clk 0:00:31]}  Rxf3 {[%clk 0:00:08]} 33. exf3 {[%clk 0:00:31]}  Bd6 {[%clk 0:00:09]} 34. c4 {[%clk 0:00:29]}  Rc8 {[%clk 0:00:10]} 35. Rb1 {[%clk 0:00:29]}  Rc5 {[%clk 0:00:10]} 36. Rb5 {[%clk 0:00:23]}  Rc7 {[%clk 0:00:11]} 37. Kf2 {[%clk 0:00:22]}  f5 {[%clk 0:00:11]} 38. Ke2 {[%clk 0:00:22]}  Kf6 {[%clk 0:00:11]} 39. Rb1 {[%clk 0:00:22]}  h5 {[%clk 0:00:12]} 40. Rf1 {[%clk 0:00:21]}  h4 {[%clk 0:00:11]} 41. g4 {[%clk 0:00:20]}  fxg4 {[%clk 0:00:07]} 42. fxg4+ {[%clk 0:00:20]}  Kg5 {[%clk 0:00:08]} 43. h3 {[%clk 0:00:19]}  Rc5 {[%clk 0:00:06]} 44. Rf7 {[%clk 0:00:15]}  Ra5 {[%clk 0:00:06]} 45. Rd7 {[%clk 0:00:14]}  Rxa2+ {[%clk 0:00:06]} 46. Kf3 {[%clk 0:00:13]}  Bc5 {[%clk 0:00:06]} 0-1


[Site "https://www.chess.com"]

[Event "Titled Tuesday Blitz October 18 Late 2022"]
[White "Graif, William"]
[Black "Ozalp, Burak"]
[WhiteFideId "2609835"]
[BlackFideId "6314210"]
[WhiteElo "2205"]
[BlackElo "2106"]
[Result "1-0"]
[Round "07"]
[TimeControl "180+1"]
[Date "2022.10.19"]
[WhiteClock "0:00:10"]
[BlackClock "0:00:16"]

1. e4 {[%clk 0:02:50]}  g6 {[%clk 0:02:59]} 2. Nc3 {[%clk 0:02:44]}  Bg7 {[%clk 0:02:56]} 3. Bc4 {[%clk 0:02:44]}  d6 {[%clk 0:02:55]} 4. d3 {[%clk 0:02:31]}  Nf6 {[%clk 0:02:33]} 5. f4 {[%clk 0:02:27]}  O-O {[%clk 0:02:30]} 6. Nf3 {[%clk 0:02:27]}  c5 {[%clk 0:02:30]} 7. O-O {[%clk 0:02:27]}  Nc6 {[%clk 0:02:30]} 8. Qe1 {[%clk 0:02:26]}  a6 {[%clk 0:02:21]} 9. f5 {[%clk 0:02:15]}  b5 {[%clk 0:02:20]} 10. Bb3 {[%clk 0:02:04]}  Na5 {[%clk 0:02:13]} 11. Qh4 {[%clk 0:01:49]}  Nxb3 {[%clk 0:02:11]} 12. axb3 {[%clk 0:01:49]}  e6 {[%clk 0:01:59]} 13. Bg5 {[%clk 0:01:11]}  exf5 {[%clk 0:01:53]} 14. Nd5 {[%clk 0:01:09]}  h6 {[%clk 0:00:47]} 15. Nxf6+ {[%clk 0:00:52]}  Kh8 {[%clk 0:00:42]} 16. Nd5 {[%clk 0:00:30]}  f6 {[%clk 0:00:30]} 17. Bxh6 {[%clk 0:00:30]}  Kg8 {[%clk 0:00:28]} 18. Rae1 {[%clk 0:00:23]}  Bb7 {[%clk 0:00:25]} 19. Nf4 {[%clk 0:00:16]}  g5 {[%clk 0:00:24]} 20. Bxg5 {[%clk 0:00:16]}  fxg5 {[%clk 0:00:24]} 21. Nxg5 {[%clk 0:00:17]}  Rf6 {[%clk 0:00:20]} 22. Qh7+ {[%clk 0:00:15]}  Kf8 {[%clk 0:00:20]} 23. Nfe6+ {[%clk 0:00:16]}  Rxe6 {[%clk 0:00:20]} 24. Nxe6+ {[%clk 0:00:16]}  Ke7 {[%clk 0:00:19]} 25. Qxg7+ {[%clk 0:00:11]}  Ke8 {[%clk 0:00:20]} 26. Nxd8 {[%clk 0:00:10]}  Kxd8 {[%clk 0:00:21]} 27. exf5 {[%clk 0:00:10]}  Bc6 {[%clk 0:00:19]} 28. Re7 {[%clk 0:00:09]}  Rb8 {[%clk 0:00:16]} 29. Qf8+ {[%clk 0:00:09]}  Be8 {[%clk 0:00:16]} 30. Qxe8# {[%clk 0:00:10]} 1-0


[Site "https://www.chess.com"]

[Event "Titled Tuesday Blitz October 18 Late 2022"]
[White "Hajiyev, Kanan"]
[Black "Wiegmann, Sascha"]
[WhiteFideId "13404148"]
[BlackFideId "4682041"]
[WhiteElo "2118"]
[BlackElo "2302"]
[Result "1-0"]
[Round "07"]
[TimeControl "180+1"]
[Date "2022.10.19"]
[WhiteClock "0:00:28"]
[BlackClock "0:00:02"]

1. d4 {[%clk 0:02:46]}  Nf6 {[%clk 0:02:43]} 2. c4 {[%clk 0:02:40]}  g6 {[%clk 0:02:42]} 3. Nf3 {[%clk 0:02:40]}  Bg7 {[%clk 0:02:43]} 4. g3 {[%clk 0:02:41]}  O-O {[%clk 0:02:43]} 5. Bg2 {[%clk 0:02:41]}  d6 {[%clk 0:02:43]} 6. O-O {[%clk 0:02:42]}  Nbd7 {[%clk 0:02:44]} 7. b3 {[%clk 0:02:42]}  e5 {[%clk 0:02:44]} 8. Bb2 {[%clk 0:02:43]}  exd4 {[%clk 0:02:40]} 9. Nxd4 {[%clk 0:02:42]}  Re8 {[%clk 0:02:41]} 10. Nc3 {[%clk 0:02:41]}  c6 {[%clk 0:02:23]} 11. Qc2 {[%clk 0:02:37]}  Nc5 {[%clk 0:02:17]} 12. Rad1 {[%clk 0:02:36]}  Qc7 {[%clk 0:02:15]} 13. Rd2 {[%clk 0:02:22]}  a5 {[%clk 0:02:03]} 14. Rfd1 {[%clk 0:02:21]}  Na6 {[%clk 0:02:03]} 15. a3 {[%clk 0:02:17]}  Ng4 {[%clk 0:01:33]} 16. h3 {[%clk 0:02:12]}  Nf6 {[%clk 0:01:27]} 17. e4 {[%clk 0:02:09]}  Nc5 {[%clk 0:01:26]} 18. Kh2 {[%clk 0:02:04]}  Qb6 {[%clk 0:01:24]} 19. f4 {[%clk 0:02:01]}  h5 {[%clk 0:00:56]} 20. Bf3 {[%clk 0:01:57]}  Bh6 {[%clk 0:00:49]} 21. Ba1 {[%clk 0:01:51]}  h4 {[%clk 0:00:43]} 22. Nce2 {[%clk 0:01:49]}  hxg3+ {[%clk 0:00:42]} 23. Kxg3 {[%clk 0:01:49]}  Nfxe4+ {[%clk 0:00:35]} 24. Kg2 {[%clk 0:01:39]}  Nxd2 {[%clk 0:00:30]} 25. Rxd2 {[%clk 0:01:39]}  Bg7 {[%clk 0:00:28]} 26. f5 {[%clk 0:01:34]}  Bxf5 {[%clk 0:00:19]} 27. Nxf5 {[%clk 0:01:34]}  gxf5 {[%clk 0:00:20]} 28. Bxg7 {[%clk 0:01:32]}  Kxg7 {[%clk 0:00:21]} 29. Qc3+ {[%clk 0:01:25]}  f6 {[%clk 0:00:20]} 30. Rxd6 {[%clk 0:01:24]}  Rf8 {[%clk 0:00:19]} 31. b4 {[%clk 0:00:58]}  axb4 {[%clk 0:00:17]} 32. axb4 {[%clk 0:00:59]}  Ne4 {[%clk 0:00:17]} 33. Bxe4 {[%clk 0:00:59]}  fxe4 {[%clk 0:00:18]} 34. Qg3+ {[%clk 0:00:57]}  Kf7 {[%clk 0:00:15]} 35. Rd7+ {[%clk 0:00:44]}  Ke6 {[%clk 0:00:09]} 36. Qd6+ {[%clk 0:00:40]}  Kf5 {[%clk 0:00:09]} 37. Nd4+ {[%clk 0:00:28]}  Qxd4 {[%clk 0:00:02]} 38. Qxd4 {[%clk 0:00:29]}  Rg8+ {[%clk 0:00:02]} 39. Kf1 {[%clk 0:00:28]} 1-0


[Site "https://www.chess.com"]

[Event "Titled Tuesday Blitz October 18 Late 2022"]
[White "Hambleton, Aman"]
[Black "Bortnyk, Mykola"]
[WhiteFideId "2606577"]
[BlackFideId "14120836"]
[WhiteElo "2538"]
[BlackElo "2582"]
[Result "0-1"]
[Round "07"]
[TimeControl "180+1"]
[Date "2022.10.18"]
[WhiteClock "0:00:02"]
[BlackClock "0:00:05"]

1. d4 {[%clk 0:03:00]}  d5 {[%clk 0:02:57]} 2. Bf4 {[%clk 0:03:00]}  c5 {[%clk 0:02:57]} 3. e3 {[%clk 0:03:00]}  cxd4 {[%clk 0:02:57]} 4. exd4 {[%clk 0:03:01]}  Nc6 {[%clk 0:02:58]} 5. c3 {[%clk 0:03:01]}  Bf5 {[%clk 0:02:59]} 6. Qb3 {[%clk 0:02:58]}  Qd7 {[%clk 0:02:58]} 7. Nd2 {[%clk 0:02:54]}  e6 {[%clk 0:02:58]} 8. Ngf3 {[%clk 0:02:46]}  f6 {[%clk 0:02:58]} 9. Be2 {[%clk 0:02:38]}  g5 {[%clk 0:02:57]} 10. Be3 {[%clk 0:02:38]}  h5 {[%clk 0:02:58]} 11. O-O {[%clk 0:02:36]}  Nge7 {[%clk 0:02:55]} 12. Rfe1 {[%clk 0:02:35]}  Kf7 {[%clk 0:02:47]} 13. Nf1 {[%clk 0:02:31]}  h4 {[%clk 0:02:46]} 14. h3 {[%clk 0:02:30]}  Bh6 {[%clk 0:02:44]} 15. Qd1 {[%clk 0:02:15]}  Rag8 {[%clk 0:02:39]} 16. N3h2 {[%clk 0:02:00]}  Bg6 {[%clk 0:02:37]} 17. Bh5 {[%clk 0:01:51]}  f5 {[%clk 0:02:30]} 18. Bxg6+ {[%clk 0:01:49]}  Nxg6 {[%clk 0:02:27]} 19. a4 {[%clk 0:01:00]}  a5 {[%clk 0:02:25]} 20. Qe2 {[%clk 0:00:55]}  Qd6 {[%clk 0:02:20]} 21. Qb5 {[%clk 0:00:46]}  Qc7 {[%clk 0:02:12]} 22. Rad1 {[%clk 0:00:46]}  Nge7 {[%clk 0:02:05]} 23. f3 {[%clk 0:00:34]}  g4 {[%clk 0:01:59]} 24. fxg4 {[%clk 0:00:31]}  f4 {[%clk 0:01:09]} 25. Bf2 {[%clk 0:00:31]}  Bg5 {[%clk 0:01:08]} 26. Nf3 {[%clk 0:00:31]}  Bf6 {[%clk 0:01:09]} 27. Qe2 {[%clk 0:00:23]}  Qd6 {[%clk 0:01:09]} 28. N1d2 {[%clk 0:00:24]}  Ng6 {[%clk 0:01:04]} 29. Nb3 {[%clk 0:00:24]}  b6 {[%clk 0:01:04]} 30. Nc1 {[%clk 0:00:24]}  e5 {[%clk 0:01:00]} 31. dxe5 {[%clk 0:00:21]}  Ncxe5 {[%clk 0:01:00]} 32. Nxe5+ {[%clk 0:00:17]}  Nxe5 {[%clk 0:00:57]} 33. Nd3 {[%clk 0:00:18]}  Ng6 {[%clk 0:00:51]} 34. Qf3 {[%clk 0:00:11]}  Re8 {[%clk 0:00:51]} 35. Rxe8 {[%clk 0:00:06]}  Rxe8 {[%clk 0:00:52]} 36. Kf1 {[%clk 0:00:06]}  Re4 {[%clk 0:00:47]} 37. Ne1 {[%clk 0:00:05]}  Qc6 {[%clk 0:00:45]} 38. Qd3 {[%clk 0:00:05]}  Ke6 {[%clk 0:00:42]} 39. Nf3 {[%clk 0:00:04]}  Ne5 {[%clk 0:00:39]} 40. Nxe5 {[%clk 0:00:04]}  Bxe5 {[%clk 0:00:39]} 41. Re1 {[%clk 0:00:02]}  Qxa4 {[%clk 0:00:37]} 42. Bxh4 {[%clk 0:00:02]}  Qc6 {[%clk 0:00:29]} 43. Bf2 {[%clk 0:00:02]}  b5 {[%clk 0:00:30]} 44. h4 {[%clk 0:00:02]}  b4 {[%clk 0:00:29]} 45. cxb4 {[%clk 0:00:03]}  axb4 {[%clk 0:00:30]} 46. b3 {[%clk 0:00:04]}  Bc3 {[%clk 0:00:25]} 47. Rd1 {[%clk 0:00:03]}  Be5 {[%clk 0:00:20]} 48. g5 {[%clk 0:00:04]}  d4 {[%clk 0:00:17]} 49. Qh3+ {[%clk 0:00:03]}  Kd5 {[%clk 0:00:17]} 50. Qf3 {[%clk 0:00:03]}  Qb5+ {[%clk 0:00:17]} 51. Kg1 {[%clk 0:00:03]}  Qe2 {[%clk 0:00:17]} 52. Qxe2 {[%clk 0:00:02]}  Rxe2 {[%clk 0:00:18]} 53. h5 {[%clk 0:00:02]}  Ra2 {[%clk 0:00:14]} 54. h6 {[%clk 0:00:02]}  Ra6 {[%clk 0:00:12]} 55. Kf1 {[%clk 0:00:02]}  Rg6 {[%clk 0:00:12]} 56. Bh4 {[%clk 0:00:03]}  Ke4 {[%clk 0:00:12]} 57. Ke2 {[%clk 0:00:03]}  Rc6 {[%clk 0:00:13]} 58. Rd2 {[%clk 0:00:03]}  Kf5 {[%clk 0:00:11]} 59. Rd3 {[%clk 0:00:02]}  Rc2+ {[%clk 0:00:11]} 60. Kf3 {[%clk 0:00:02]}  Rc3 {[%clk 0:00:11]} 61. Ke2 {[%clk 0:00:02]}  Ke4 {[%clk 0:00:10]} 62. Rd2 {[%clk 0:00:01]}  d3+ {[%clk 0:00:10]} 63. Kf1 {[%clk 0:00:01]}  Rc1+ {[%clk 0:00:10]} 64. Be1 {[%clk 0:00:02]}  Bc3 {[%clk 0:00:11]} 65. h7 {[%clk 0:00:01]}  Bxd2 {[%clk 0:00:11]} 66. h8=Q {[%clk 0:00:01]}  Rxe1+ {[%clk 0:00:11]} 67. Kf2 {[%clk 0:00:02]}  Re2+ {[%clk 0:00:12]} 68. Kg1 {[%clk 0:00:02]}  Be3+ {[%clk 0:00:13]} 69. Kh2 {[%clk 0:00:02]}  d2 {[%clk 0:00:13]} 70. Qh7+ {[%clk 0:00:02]}  Kd4 {[%clk 0:00:13]} 71. Qc2 {[%clk 0:00:02]}  f3 {[%clk 0:00:11]} 72. Qc4+ {[%clk 0:00:02]}  Ke5 {[%clk 0:00:11]} 73. Qb5+ {[%clk 0:00:02]}  Kf4 {[%clk 0:00:10]} 74. Qb8+ {[%clk 0:00:01]}  Kf5 {[%clk 0:00:10]} 75. Qf8+ {[%clk 0:00:02]}  Kxg5 {[%clk 0:00:10]} 76. Qg8+ {[%clk 0:00:02]}  Kf5 {[%clk 0:00:11]} 77. Qf7+ {[%clk 0:00:02]}  Ke5 {[%clk 0:00:11]} 78. Qe7+ {[%clk 0:00:02]}  Kd5 {[%clk 0:00:09]} 79. Qb7+ {[%clk 0:00:02]}  Kd6 {[%clk 0:00:08]} 80. Qa6+ {[%clk 0:00:01]}  Kc7 {[%clk 0:00:08]} 81. Qc4+ {[%clk 0:00:01]}  Kb7 {[%clk 0:00:07]} 82. Qxb4+ {[%clk 0:00:02]}  Bb6 {[%clk 0:00:08]} 83. Qc4 {[%clk 0:00:01]}  Rxg2+ {[%clk 0:00:07]} 84. Kh3 {[%clk 0:00:01]}  d1=Q {[%clk 0:00:07]} 85. Qe4+ {[%clk 0:00:02]}  Kc8 {[%clk 0:00:06]} 86. Qe8+ {[%clk 0:00:02]}  Qd8 {[%clk 0:00:05]} 87. Qc6+ {[%clk 0:00:02]}  Kb8 {[%clk 0:00:06]} 88. Qh6 {[%clk 0:00:01]}  Qd7+ {[%clk 0:00:05]} 89. Kh4 {[%clk 0:00:02]}  Qg4# {[%clk 0:00:05]} 0-1


[Site "https://www.chess.com"]

[Event "Titled Tuesday Blitz October 18 Late 2022"]
[White "Hansen, Eric"]
[Black "Goltsev, Dmitry"]
[WhiteFideId "2606771"]
[BlackFideId "24176710"]
[WhiteElo "2568"]
[BlackElo "2257"]
[Result "1-0"]
[Round "07"]
[TimeControl "180+1"]
[Date "2022.10.18"]
[WhiteClock "0:02:35"]
[BlackClock "0:02:43"]

1. d4 {[%clk 0:03:00]}  Nf6 {[%clk 0:02:59]} 2. Nf3 {[%clk 0:02:59]}  e6 {[%clk 0:02:58]} 3. c4 {[%clk 0:02:58]}  d5 {[%clk 0:02:58]} 4. Nc3 {[%clk 0:02:58]}  Bb4 {[%clk 0:02:59]} 5. Qa4+ {[%clk 0:02:58]}  Nc6 {[%clk 0:02:58]} 6. Bg5 {[%clk 0:02:59]}  O-O {[%clk 0:02:56]} 7. e3 {[%clk 0:02:59]}  h6 {[%clk 0:02:55]} 8. Bxf6 {[%clk 0:02:59]}  Qxf6 {[%clk 0:02:56]} 9. Be2 {[%clk 0:02:59]}  Bxc3+ {[%clk 0:02:54]} 10. bxc3 {[%clk 0:02:58]}  Bd7 {[%clk 0:02:54]} 11. Qa3 {[%clk 0:02:54]}  dxc4 {[%clk 0:02:53]} 12. Bxc4 {[%clk 0:02:51]}  Qe7 {[%clk 0:02:53]} 13. Qb2 {[%clk 0:02:44]}  a6 {[%clk 0:02:51]} 14. O-O {[%clk 0:02:43]}  b5 {[%clk 0:02:48]} 15. Be2 {[%clk 0:02:42]}  Na5 {[%clk 0:02:48]} 16. Ne5 {[%clk 0:02:42]}  Rab8 {[%clk 0:02:43]} 17. Qb4 {[%clk 0:02:35]} 1-0


[Site "https://www.chess.com"]

[Event "Titled Tuesday Blitz October 18 Late 2022"]
[White "Hemam, Moulaye Brahim"]
[Black "Jimenez Fernandez, Rebeca"]
[WhiteFideId "19600054"]
[BlackFideId "32070934"]
[WhiteElo "2088"]
[BlackElo "1946"]
[Result "1-0"]
[Round "07"]
[TimeControl "180+1"]
[Date "2022.10.19"]
[WhiteClock "0:00:54"]
[BlackClock "0:01:26"]

1. e4 {[%clk 0:02:59]}  g6 {[%clk 0:02:58]} 2. d4 {[%clk 0:02:58]}  Bg7 {[%clk 0:02:58]} 3. Nc3 {[%clk 0:02:57]}  d6 {[%clk 0:02:59]} 4. Nf3 {[%clk 0:02:57]}  a6 {[%clk 0:03:00]} 5. Be3 {[%clk 0:02:57]}  b5 {[%clk 0:03:00]} 6. a3 {[%clk 0:02:55]}  Bb7 {[%clk 0:03:00]} 7. Bd3 {[%clk 0:02:54]}  Nf6 {[%clk 0:03:01]} 8. h3 {[%clk 0:02:53]}  Nbd7 {[%clk 0:03:01]} 9. O-O {[%clk 0:02:51]}  e6 {[%clk 0:03:01]} 10. Qd2 {[%clk 0:02:39]}  Qe7 {[%clk 0:03:00]} 11. Bh6 {[%clk 0:02:19]}  O-O {[%clk 0:03:00]} 12. Bxg7 {[%clk 0:02:15]}  Kxg7 {[%clk 0:03:01]} 13. Rfe1 {[%clk 0:02:12]}  c5 {[%clk 0:03:00]} 14. dxc5 {[%clk 0:02:04]}  Nxc5 {[%clk 0:03:01]} 15. e5 {[%clk 0:01:59]}  Nd5 {[%clk 0:02:41]} 16. exd6 {[%clk 0:01:47]}  Qxd6 {[%clk 0:02:40]} 17. b4 {[%clk 0:01:33]}  Nxc3 {[%clk 0:02:34]} 18. Qxc3+ {[%clk 0:01:30]}  Kg8 {[%clk 0:02:29]} 19. Qxc5 {[%clk 0:01:25]}  Qxc5 {[%clk 0:02:29]} 20. bxc5 {[%clk 0:01:25]}  Bxf3 {[%clk 0:02:29]} 21. gxf3 {[%clk 0:01:25]}  Rac8 {[%clk 0:02:30]} 22. a4 {[%clk 0:01:22]}  Rxc5 {[%clk 0:02:30]} 23. axb5 {[%clk 0:01:22]}  axb5 {[%clk 0:02:30]} 24. Ra5 {[%clk 0:01:21]}  Rfc8 {[%clk 0:02:29]} 25. Rb1 {[%clk 0:01:18]}  Rg5+ {[%clk 0:01:44]} 26. Kh2 {[%clk 0:01:15]}  Rcc5 {[%clk 0:01:43]} 27. Rbxb5 {[%clk 0:01:14]}  Rxb5 {[%clk 0:01:37]} 28. Rxb5 {[%clk 0:01:13]}  Rxb5 {[%clk 0:01:37]} 29. Bxb5 {[%clk 0:01:14]}  Kf8 {[%clk 0:01:38]} 30. Kg3 {[%clk 0:01:13]}  Ke7 {[%clk 0:01:38]} 31. Kf4 {[%clk 0:01:13]}  f6 {[%clk 0:01:38]} 32. Ke4 {[%clk 0:01:11]}  Kd6 {[%clk 0:01:39]} 33. Kd4 {[%clk 0:01:11]}  h5 {[%clk 0:01:37]} 34. f4 {[%clk 0:01:08]}  g5 {[%clk 0:01:36]} 35. fxg5 {[%clk 0:01:08]}  fxg5 {[%clk 0:01:37]} 36. Ke4 {[%clk 0:01:06]}  Kc5 {[%clk 0:01:34]} 37. Be2 {[%clk 0:01:05]}  Kb4 {[%clk 0:01:29]} 38. Bxh5 {[%clk 0:01:01]}  Kc3 {[%clk 0:01:29]} 39. Ke5 {[%clk 0:00:58]}  Kxc2 {[%clk 0:01:29]} 40. Kxe6 {[%clk 0:00:58]}  Kd2 {[%clk 0:01:29]} 41. Kf5 {[%clk 0:00:58]}  Ke1 {[%clk 0:01:29]} 42. Kxg5 {[%clk 0:00:56]}  Kxf2 {[%clk 0:01:29]} 43. Bg6 {[%clk 0:00:55]}  Ke3 {[%clk 0:01:26]} 44. h4 {[%clk 0:00:55]}  Kd4 {[%clk 0:01:26]} 45. Kf6 {[%clk 0:00:54]} 1-0


[Site "https://www.chess.com"]

[Event "Titled Tuesday Blitz October 18 Late 2022"]
[White "Iliaguev, Nisim"]
[Black "Yeletsky, Ivan"]
[WhiteFideId "2817276"]
[BlackFideId "24180327"]
[WhiteElo "2264"]
[BlackElo "2391"]
[Result "1-0"]
[Round "07"]
[TimeControl "180+1"]
[Date "2022.10.18"]
[WhiteClock "0:00:46"]
[BlackClock "0:00:05"]

1. d4 {[%clk 0:03:00]}  Nf6 {[%clk 0:02:59]} 2. Nf3 {[%clk 0:03:01]}  d6 {[%clk 0:03:00]} 3. g3 {[%clk 0:03:01]}  g6 {[%clk 0:03:00]} 4. Bg2 {[%clk 0:03:02]}  Bg7 {[%clk 0:03:01]} 5. O-O {[%clk 0:03:02]}  O-O {[%clk 0:03:01]} 6. c4 {[%clk 0:03:03]}  Nbd7 {[%clk 0:02:59]} 7. Nc3 {[%clk 0:03:04]}  e5 {[%clk 0:02:59]} 8. b3 {[%clk 0:03:04]}  exd4 {[%clk 0:02:59]} 9. Nxd4 {[%clk 0:03:05]}  Re8 {[%clk 0:03:00]} 10. Bb2 {[%clk 0:03:05]}  Nc5 {[%clk 0:02:59]} 11. Qc2 {[%clk 0:03:05]}  h5 {[%clk 0:02:59]} 12. h4 {[%clk 0:03:04]}  Ng4 {[%clk 0:02:54]} 13. Rad1 {[%clk 0:03:01]}  a5 {[%clk 0:02:53]} 14. Nd5 {[%clk 0:02:57]}  c6 {[%clk 0:02:51]} 15. Nf4 {[%clk 0:02:54]}  Qe7 {[%clk 0:02:51]} 16. Nf3 {[%clk 0:02:45]}  Bf5 {[%clk 0:02:49]} 17. Qc1 {[%clk 0:02:40]}  Be4 {[%clk 0:02:39]} 18. Bxg7 {[%clk 0:02:40]}  Kxg7 {[%clk 0:02:40]} 19. Qc3+ {[%clk 0:02:32]}  Kg8 {[%clk 0:02:41]} 20. Qd4 {[%clk 0:02:30]}  Rad8 {[%clk 0:02:40]} 21. Ng5 {[%clk 0:02:23]}  Bxg2 {[%clk 0:02:38]} 22. Kxg2 {[%clk 0:02:24]}  Nf6 {[%clk 0:02:30]} 23. f3 {[%clk 0:02:06]}  Qe5 {[%clk 0:02:29]} 24. e4 {[%clk 0:02:02]}  Nh7 {[%clk 0:01:57]} 25. Nxh7 {[%clk 0:01:58]}  Kxh7 {[%clk 0:01:58]} 26. Nh3 {[%clk 0:01:58]}  Kg7 {[%clk 0:01:55]} 27. Ng5 {[%clk 0:01:51]}  Ne6 {[%clk 0:01:39]} 28. Qxe5+ {[%clk 0:01:50]}  dxe5 {[%clk 0:01:40]} 29. Nxe6+ {[%clk 0:01:50]}  fxe6 {[%clk 0:01:41]} 30. Kf2 {[%clk 0:01:48]}  Kf6 {[%clk 0:01:41]} 31. Ke3 {[%clk 0:01:46]}  Ke7 {[%clk 0:01:40]} 32. f4 {[%clk 0:01:34]}  exf4+ {[%clk 0:01:41]} 33. gxf4 {[%clk 0:01:35]}  Kf6 {[%clk 0:01:40]} 34. Rg1 {[%clk 0:01:31]}  Rg8 {[%clk 0:01:24]} 35. c5 {[%clk 0:01:27]}  Ke7 {[%clk 0:01:08]} 36. Rxd8 {[%clk 0:01:08]}  Kxd8 {[%clk 0:01:08]} 37. Kd4 {[%clk 0:01:08]}  Ke7 {[%clk 0:01:05]} 38. Ke5 {[%clk 0:01:09]}  Kd7 {[%clk 0:00:14]} 39. Rd1+ {[%clk 0:01:07]}  Kc7 {[%clk 0:00:14]} 40. Rd6 {[%clk 0:01:06]}  b6 {[%clk 0:00:12]} 41. cxb6+ {[%clk 0:01:03]}  Kxb6 {[%clk 0:00:13]} 42. Rxe6 {[%clk 0:01:01]}  Kb5 {[%clk 0:00:13]} 43. Kf6 {[%clk 0:00:52]}  Rd8 {[%clk 0:00:02]} 44. Kxg6 {[%clk 0:00:49]}  Rd2 {[%clk 0:00:03]} 45. f5 {[%clk 0:00:47]}  Rxa2 {[%clk 0:00:02]} 46. f6 {[%clk 0:00:48]}  Rg2+ {[%clk 0:00:03]} 47. Kxh5 {[%clk 0:00:46]}  c5 {[%clk 0:00:02]} 48. f7 {[%clk 0:00:44]}  Rf2 {[%clk 0:00:02]} 49. Kg6 {[%clk 0:00:45]}  Rg2+ {[%clk 0:00:02]} 50. Kf6 {[%clk 0:00:43]}  Rf2+ {[%clk 0:00:01]} 51. Ke7 {[%clk 0:00:43]}  Kb4 {[%clk 0:00:02]} 52. Rb6+ {[%clk 0:00:43]}  Kc3 {[%clk 0:00:02]} 53. f8=Q {[%clk 0:00:44]}  Rxf8 {[%clk 0:00:03]} 54. Kxf8 {[%clk 0:00:45]}  c4 {[%clk 0:00:03]} 55. bxc4 {[%clk 0:00:45]}  Kxc4 {[%clk 0:00:04]} 56. Ra6 {[%clk 0:00:45]}  a4 {[%clk 0:00:05]} 57. Rxa4+ {[%clk 0:00:46]} 1-0


[Site "https://www.chess.com"]

[Event "Titled Tuesday Blitz October 18 Late 2022"]
[White "Itkis, Boris"]
[Black "Kanter, Eduard"]
[WhiteFideId "1209167"]
[BlackFideId "4103963"]
[WhiteElo "2232"]
[BlackElo "2267"]
[Result "0-1"]
[Round "07"]
[TimeControl "180+1"]
[Date "2022.10.19"]
[WhiteClock "0:00:07"]
[BlackClock "0:00:02"]

1. c4 {[%clk 0:02:58]}  e6 {[%clk 0:02:59]} 2. Nf3 {[%clk 0:02:57]}  d5 {[%clk 0:02:59]} 3. b3 {[%clk 0:02:58]}  Nf6 {[%clk 0:02:58]} 4. Bb2 {[%clk 0:02:59]}  c5 {[%clk 0:02:54]} 5. e3 {[%clk 0:02:59]}  Nc6 {[%clk 0:02:54]} 6. g3 {[%clk 0:02:59]}  d4 {[%clk 0:02:51]} 7. exd4 {[%clk 0:03:00]}  cxd4 {[%clk 0:02:51]} 8. Bg2 {[%clk 0:03:00]}  Bc5 {[%clk 0:02:48]} 9. O-O {[%clk 0:03:00]}  O-O {[%clk 0:02:48]} 10. Re1 {[%clk 0:03:01]}  Re8 {[%clk 0:02:46]} 11. Ne5 {[%clk 0:03:01]}  Nxe5 {[%clk 0:02:45]} 12. Rxe5 {[%clk 0:03:02]}  Nd7 {[%clk 0:02:44]} 13. Re1 {[%clk 0:02:59]}  e5 {[%clk 0:02:42]} 14. d3 {[%clk 0:03:00]}  a5 {[%clk 0:02:38]} 15. a3 {[%clk 0:02:58]}  Bd6 {[%clk 0:02:29]} 16. Nd2 {[%clk 0:02:55]}  Nc5 {[%clk 0:02:28]} 17. Ne4 {[%clk 0:02:55]}  Bf5 {[%clk 0:01:46]} 18. Nxc5 {[%clk 0:02:51]}  Bxc5 {[%clk 0:01:46]} 19. Bxb7 {[%clk 0:02:50]}  Rb8 {[%clk 0:01:45]} 20. Bd5 {[%clk 0:02:38]}  Qb6 {[%clk 0:01:38]} 21. Qf3 {[%clk 0:02:31]}  Bg6 {[%clk 0:01:38]} 22. b4 {[%clk 0:02:09]}  axb4 {[%clk 0:01:37]} 23. axb4 {[%clk 0:02:10]}  Bxb4 {[%clk 0:01:26]} 24. Re2 {[%clk 0:02:00]}  Bc3 {[%clk 0:01:21]} 25. Bxc3 {[%clk 0:02:00]}  dxc3 {[%clk 0:01:21]} 26. Rc1 {[%clk 0:01:54]}  Qd4 {[%clk 0:01:18]} 27. Rec2 {[%clk 0:01:49]}  Rb3 {[%clk 0:00:50]} 28. c5 {[%clk 0:01:21]}  Ra3 {[%clk 0:00:47]} 29. c6 {[%clk 0:01:21]}  Re7 {[%clk 0:00:39]} 30. Rb1 {[%clk 0:01:12]}  h6 {[%clk 0:00:35]} 31. Rb7 {[%clk 0:01:11]}  Rxb7 {[%clk 0:00:17]} 32. cxb7 {[%clk 0:01:12]}  Ra1+ {[%clk 0:00:14]} 33. Kg2 {[%clk 0:01:11]}  Rb1 {[%clk 0:00:15]} 34. Ra2 {[%clk 0:00:43]}  Kh7 {[%clk 0:00:12]} 35. Bc4 {[%clk 0:00:17]}  e4 {[%clk 0:00:10]} 36. Qf4 {[%clk 0:00:15]}  Rb6 {[%clk 0:00:06]} 37. b8=Q {[%clk 0:00:14]}  Rxb8 {[%clk 0:00:05]} 38. Qxb8 {[%clk 0:00:15]}  exd3 {[%clk 0:00:05]} 39. Qf4 {[%clk 0:00:15]}  Qxf4 {[%clk 0:00:03]} 40. gxf4 {[%clk 0:00:15]}  c2 {[%clk 0:00:03]} 41. Ra1 {[%clk 0:00:13]}  d2 {[%clk 0:00:03]} 42. f5 {[%clk 0:00:10]}  c1=Q {[%clk 0:00:04]} 43. fxg6+ {[%clk 0:00:09]}  fxg6 {[%clk 0:00:03]} 44. Ra8 {[%clk 0:00:07]}  Qxc4 {[%clk 0:00:02]} 0-1


[Site "https://www.chess.com"]